bitfinex/quotes_ETHUSD_20250930
["timestamp","ask_amount","ask_price","bid_price","bid_amount"]
[1759192536275,1.5751825,4226.0,4225.8,2.757]
[1759192536563,0.6933,4225.9,4225.8,2.757]
[1759192536876,3.60760669,4226.3,4225.8,2.757]
[1759192536877,0.2311,4226.2,4225.8,2.757]
[1759192537184,3.60760669,4226.3,4225.8,2.757]
[1759192537185,0.2311,4226.1,4225.8,2.757]
[1759192537758,0.2311,4226.0,4225.8,2.757]
[1759192537954,0.55158489,4226.0,4225.8,2.757]
[1759192538705,0.2311,4225.9,4225.8,2.757]
[1759192539389,2.59629541,4226.2,4225.8,2.757]
[1759192539564,2.36619827,4226.2,4225.8,2.757]
[1759192539765,0.2301,4226.1,4225.8,2.757]
[1759192540072,0.2301,4226.0,4225.8,2.757]
[1759192540473,0.4404,4227.9,4225.8,2.757]
[1759192540664,0.4404,4227.9,4226.0,2.36626783]
[1759192540665,2.36546422,4227.5,4226.0,2.36626783]
[1759192540859,0.6705,4227.4,4225.9,0.4588]
[1759192541064,3.2301,4227.3,4226.0,14.741]
[1759192541260,5.36569273,4227.1,4226.0,14.741]
[1759192541461,3.0,4227.0,4226.0,14.741]
[1759192541666,2.36570137,4227.1,4226.1,2.36623473]
[1759192541874,0.59715,4227.2,4226.2,3.004]
[1759192542095,0.2301,4227.2,4226.3,0.4588]
[1759192542281,0.2301,4227.2,4226.4,0.241]
[1759192542598,0.2301,4227.2,4226.4,2.60703077]
[1759192542796,1.0,4227.0,4226.5,0.6998]
[1759192542960,1.0,4227.0,4226.6,2.763]
[1759192543161,1.0,4227.0,4226.2,14.5]
[1759192543393,0.2301,4226.9,4226.3,2.763]
[1759192543637,0.16705,4226.8,4226.3,2.763]
[1759192543762,1.0,4227.0,4226.4,0.6998]
[1759192543962,3.36574664,4227.0,4226.5,0.241]
[1759192544291,0.1176,4226.5,4226.3,5.12913024]
[1759192544464,0.1176,4226.5,4226.4,2.36607987]
[1759192544819,1.0,4227.0,4226.4,2.36607987]
[1759192544820,0.1176,4226.7,4226.4,0.72346079]
[1759192545017,1.0,4227.0,4226.8,2.36581177]
[1759192545304,1.0,4227.0,4226.9,3.4658]
[1759192546514,1.0,4227.0,4226.9,6.62359999]
[1759192546698,1.0,4227.0,4226.9,21.12359999]
[1759192547007,1.0,4227.0,4226.9,23.3986116]
[1759192549008,1.0,4227.0,4226.9,23.4056116]
[1759192549312,1.0,4227.0,4226.9,21.13059999]
[1759192551022,1.0,4227.0,4226.9,24.13059999]
[1759192551225,0.001,4227.3,4227.2,3.15763209]
[1759192551393,0.001,4227.3,4227.2,5.93063209]
[1759192551599,0.001,4227.3,4227.2,6.63043209]
[1759192551818,0.001,4227.3,4227.2,22.26662595]
[1759192552522,0.001,4227.3,4227.2,19.49362595]
[1759192552709,0.001,4227.3,4227.2,22.26562595]
[1759192553316,0.001,4227.3,4227.2,22.97701783]
[1759192554400,0.001,4227.3,4227.2,14.5]
[1759192554596,0.001,4227.3,4227.2,17.272]
[1759192556137,0.2311,4227.3,4226.3,2.6071358]
[1759192556336,0.6715,4227.3,4226.6,2.36596336]
[1759192556544,0.1176,4226.9,4226.7,2.79365911]
[1759192556748,0.1176,4226.9,4226.8,14.5]
[1759192559542,2.36600831,4226.6,4225.6,0.241]
[1759192559843,0.2301,4226.5,4225.7,2.773]
[1759192560139,2.59618987,4226.4,4225.8,2.773]
[1759192560542,2.366252,4226.1,4225.9,2.772]
[1759192560744,0.2301,4226.0,4225.9,2.772]
[1759192561041,2.36614846,4226.3,4225.4,0.241]
[1759192561042,0.2301,4226.3,4225.7,0.792]
[1759192561241,0.2301,4226.3,4225.8,2.772]
[1759192561452,0.2301,4226.3,4225.9,2.772]
[1759192562345,0.4404,4226.4,4225.9,2.772]
[1759192562522,2.5962969,4226.2,4225.9,2.772]
[1759192562713,0.2301,4226.1,4225.9,2.772]
[1759192563433,2.36620008,4226.2,4225.9,2.772]
[1759192563640,0.2301,4226.1,4225.9,2.772]
[1759192564049,0.6705,4226.0,4225.4,0.4773093]
[1759192564343,2.3653619,4227.7,4225.9,3.0]
[1759192564542,2.36532168,4227.8,4226.5,0.792]
[1759192564717,2.59528514,4228.0,4226.9,2.36579367]
[1759192564915,2.36518514,4228.0,4227.0,2.80465744]
[1759192565122,0.2301,4227.8,4227.1,2.36567196]
[1759192565332,0.2301,4227.8,4227.1,2.36568806]
[1759192566342,0.2301,4227.8,4227.2,2.36563209]
[1759192566640,0.2301,4227.8,4227.0,5.38772437]
[1759192566845,0.2301,4227.8,4227.0,3.022]
[1759192567041,0.2301,4227.8,4227.2,2.36563209]
[1759192567243,0.2301,4228.1,4227.2,3.18128841]
[1759192567419,0.2301,4228.1,4227.2,3.88108841]
[1759192567816,0.2301,4228.1,4227.2,6.66008841]
[1759192568017,0.71148973,4229.3,4227.2,6.66008841]
[1759192568018,0.2301,4228.6,4227.2,6.63643209]
[1759192568242,2.36458258,4229.1,4227.2,7.71399731]
[1759192568446,0.2301,4228.9,4227.2,7.71399731]
[1759192568747,0.2301,4228.9,4227.2,10.71399731]
[1759192569117,0.2301,4229.2,4227.2,10.71399731]
[1759192569647,0.1176,4228.8,4227.2,10.83159731]
[1759192570217,0.2438,4228.7,4227.2,10.83159731]
[1759192570418,0.1176,4228.5,4227.2,10.83159731]
[1759192571937,0.1176,4228.5,4227.2,12.10954043]
[1759192572733,0.1176,4228.5,4227.2,9.33054043]
[1759192572926,0.1176,4228.5,4227.2,12.10754043]
[1759192573951,0.1176,4228.5,4227.2,10.82959731]
[1759192574156,0.1176,4228.5,4227.2,12.09892965]
[1759192574361,2.36277983,4232.4,4227.2,12.09892965]
[1759192574362,0.2438,4229.3,4228.3,0.63462982]
[1759192574522,0.2438,4229.8,4228.4,4.90637942]
[1759192574727,0.2438,4229.8,4229.6,2.36428665]
[1759192574928,0.2438,4229.8,4229.7,2.786]
[1759192575137,0.2438,4229.8,4229.7,5.15023387]
[1759192575357,5.36329176,4231.4,4229.7,5.15023387]
[1759192575358,0.12243741,4232.5,4229.9,3.0]
[1759192575557,0.7,4232.4,4230.2,0.792]
[1759192575862,0.71113219,4231.6,4230.6,0.792]
[1759192576153,0.2426,4231.6,4230.9,0.792]
[1759192576356,0.2426,4231.6,4231.1,2.36344994]
[1759192576555,0.2426,4231.6,4231.2,2.81663395]
[1759192576755,3.0,4232.4,4231.2,2.81663395]
[1759192576756,2.36265836,4232.6,4231.3,0.81563339]
[1759192576943,0.2426,4232.1,4231.7,2.36310716]
[1759192577144,0.2426,4232.1,4231.8,2.794]
[1759192577347,2.36132137,4235.0,4232.0,0.792]
[1759192577551,0.2426,4232.9,4232.1,2.81762893]
[1759192577754,0.2426,4232.9,4232.2,2.794]
[1759192577936,0.2426,4233.4,4232.3,0.792]
[1759192578262,0.2426,4234.2,4232.5,0.792]
[1759192578445,0.2426,4234.6,4232.8,0.792]
[1759192578762,0.2426,4234.6,4233.5,0.792]
[1759192578962,2.36160967,4234.4,4233.6,2.799]
[1759192579155,0.7,4234.5,4231.7,0.63462982]
[1759192579156,0.2426,4234.3,4231.7,0.63462982]
[1759192579461,0.2426,4234.3,4230.2,2.12982768]
[1759192579462,0.7,4234.2,4233.2,0.71040807]
[1759192579663,2.36189486,4233.9,4233.3,0.972]
[1759192579856,2.3620718,4233.6,4233.3,0.972]
[1759192580035,0.7,4233.5,4233.3,0.972]
[1759192580362,3.06219431,4233.4,4232.8,2.8]
[1759192580563,2.36235388,4233.1,4232.8,2.8]
[1759192580728,0.7,4233.0,4232.1,0.71061337]
[1759192580934,2.36250801,4232.8,4232.2,2.803]
[1759192581185,2.36250801,4232.8,4231.9,0.792]
[1759192581186,2.36256662,4232.7,4231.9,0.71064199]
[1759192581365,0.7,4232.7,4231.9,0.71064199]
[1759192581533,0.4574,4232.7,4232.0,2.802]
[1759192581739,0.7,4232.6,4231.9,0.71064199]
[1759192581936,0.7,4232.6,4231.6,2.178]
[1759192582134,2.36304184,4231.9,4231.6,2.178]
[1759192582335,0.93630418,4231.8,4231.6,2.178]
[1759192582557,3.06311647,4231.7,4231.6,2.178]
[1759192582866,0.7,4231.7,4231.2,2.803]
[1759192583069,0.7,4231.7,4230.7,0.7108491]
[1759192583070,2.36304035,4231.9,4230.8,2.803]
[1759192583234,0.7,4231.6,4230.8,2.803]
[1759192583437,3.06319352,4231.6,4230.8,2.803]
[1759192583632,0.30631935,4231.5,4230.8,2.803]
[1759192583977,2.66956294,4231.5,4230.8,2.803]
[1759192584159,2.36329028,4231.4,4230.8,2.803]
[1759192584467,0.1176,4231.0,4230.8,2.803]
[1759192584664,0.2426,4230.9,4230.4,2.803]
[1759192585059,0.4574,4232.4,4230.6,0.792]
[1759192585254,0.1176,4231.4,4230.7,0.8]
[1759192585465,0.2426,4231.7,4230.8,2.804]
[1759192585783,0.1176,4231.1,4230.8,2.804]
[1759192586187,0.1176,4231.1,4230.8,3.0521]
[1759192586764,0.1176,4231.1,4230.8,2.804]
[1759192586977,0.1176,4231.1,4230.3,0.2481]
[1759192586978,0.2426,4231.0,4230.9,2.803]
[1759192587771,0.54893891,4231.0,4230.9,2.803]
[1759192588173,0.2426,4231.0,4230.9,2.803]
[1759192588569,0.2426,4231.0,4230.3,0.02363898]
[1759192588774,0.1176,4230.6,4230.4,2.803]
[1759192589758,0.1176,4230.6,4230.5,2.801]
[1759192590886,0.3602,4230.6,4229.7,0.47025767]
[1759192591087,0.1176,4230.1,4229.8,2.801]
[1759192591463,0.1176,4230.1,4229.9,2.36411888]
[1759192591664,0.1176,4230.1,4229.8,2.801]
[1759192592069,0.1176,4230.1,4229.6,0.2481]
[1759192592279,3.0,4231.4,4228.0,0.63462982]
[1759192592480,3.0,4231.4,4228.8,0.1176]
[1759192592481,0.1176,4229.5,4228.8,0.1176]
[1759192592683,0.1176,4229.3,4228.9,0.534]
[1759192593463,0.1176,4229.3,4228.9,2.89867973]
[1759192593669,0.1176,4229.3,4228.9,0.534]
[1759192594388,0.1176,4229.3,4228.9,2.89867415]
[1759192594759,0.1176,4229.3,4228.9,0.534]
[1759192595300,0.1176,4229.3,4228.9,2.8986739]
[1759192595594,0.1176,4229.3,4228.9,0.534]
[1759192595983,0.1176,4229.3,4229.1,2.36455724]
[1759192596382,0.1176,4229.3,4229.0,2.36461174]
[1759192596774,0.1176,4229.3,4228.9,2.89866719]
[1759192596976,0.1176,4229.3,4229.0,2.36460926]
[1759192597395,0.1176,4229.6,4229.1,0.6824]
[1759192597583,0.1176,4229.6,4229.5,2.36434566]
[1759192597788,0.1176,4229.6,4229.5,5.84174566]
[1759192598803,0.2426,4230.8,4229.5,5.95934566]
[1759192598977,2.36332864,4231.4,4229.7,0.792]
[1759192599166,0.1176,4230.7,4230.4,2.36383146]
[1759192599370,0.1176,4230.7,4230.5,2.794]
[1759192599700,0.2449,4230.6,4230.5,2.794]
[1759192600073,0.2449,4230.9,4230.5,2.794]
[1759192601285,0.4315,4231.1,4230.5,2.794]
[1759192601471,2.88792738,4231.0,4230.5,2.794]
[1759192601678,0.2449,4230.9,4230.5,2.794]
[1759192602601,0.2449,4231.5,4230.7,2.3636702]
[1759192602774,2.6079821,4231.8,4230.8,0.02363619]
[1759192602973,2.6079821,4231.8,4230.9,5.15752303]
[1759192602974,2.72783933,4231.7,4230.9,5.15752303]
[1759192603180,2.72783933,4231.7,4230.9,2.794]
[1759192603609,0.1176,4231.3,4231.1,2.36343922]
[1759192603812,2.36323047,4231.5,4230.9,2.794]
[1759192603994,0.1176,4231.0,4230.9,2.794]
[1759192604196,0.1176,4231.0,4230.5,0.002]
[1759192604197,0.3625,4231.0,4230.5,0.002]
[1759192604377,0.2449,4230.9,4230.8,2.795]
[1759192604777,3.0399633,4230.9,4230.8,2.795]
[1759192605086,0.6764,4230.9,4230.8,2.795]
[1759192605284,0.1176,4230.8,4230.5,0.002]
[1759192605586,2.36373091,4230.6,4230.5,0.002]
[1759192605894,2.90410659,4230.6,4230.5,0.002]
[1759192606101,2.36406619,4230.0,4228.7,0.63462982]
[1759192606284,2.36504869,4228.3,4227.9,0.63462982]
[1759192606486,2.60158882,4228.2,4226.7,14.9328]
[1759192606687,2.3651925,4228.0,4226.7,14.9328]
[1759192606925,2.36518448,4228.0,4226.8,0.4328]
[1759192607079,2.36537363,4227.7,4226.8,0.6819]
[1759192607276,2.36542337,4227.6,4226.8,0.6819]
[1759192607596,0.2449,4228.1,4226.8,0.6819]
[1759192607803,2.3653589,4227.7,4226.9,0.2491]
[1759192608376,0.44248916,4227.7,4226.7,14.5]
[1759192608577,2.36548447,4227.5,4226.8,2.825]
[1759192608987,2.36552333,4227.4,4226.8,2.825]
[1759192609198,2.36547371,4227.5,4226.8,2.825]
[1759192609508,2.3656891,4227.1,4226.8,2.825]
[1759192610284,0.2449,4227.4,4226.8,2.825]
[1759192610513,2.36557613,4227.3,4226.8,2.825]
[1759192610679,0.98059761,4227.2,4226.3,14.5]
[1759192610883,2.36597373,4226.6,4226.1,2.823]
[1759192611135,0.6764,4226.5,4226.1,2.823]
[1759192611282,2.36598222,4226.6,4226.1,2.823]
[1759192611482,0.2449,4226.4,4226.1,2.823]
[1759192611694,0.2449,4226.3,4226.1,2.823]
[1759192614320,2.36598183,4226.6,4226.1,2.823]
[1759192614518,0.48149818,4226.5,4226.1,2.823]
[1759192614725,3.04252436,4226.4,4226.1,2.823]
[1759192614889,0.2449,4226.3,4226.1,2.823]
[1759192615094,5.36536926,4227.7,4224.2,0.4328]
[1759192615095,5.36579999,4226.9,4224.2,0.4328]
[1759192615301,2.36637085,4225.9,4224.5,0.2491]
[1759192615517,0.2449,4226.3,4224.6,0.4328]
[1759192615717,2.36648496,4225.7,4224.6,14.9328]
[1759192615916,2.36648496,4225.7,4224.7,2.36699085]
[1759192616125,0.1176,4225.0,4224.8,2.82]
[1759192616325,0.2366485,4225.6,4224.8,2.82]
[1759192616526,2.60322287,4225.6,4224.8,17.32]
[1759192616925,0.2366485,4225.6,4224.8,17.32]
[1759192617129,0.2366485,4225.6,4224.8,19.6869751]
[1759192617329,2.61142457,4225.7,4224.8,5.1869751]
[1759192617530,2.61142457,4225.7,4224.9,2.36691004]
[1759192617728,2.36653783,4225.6,4224.8,5.1869664]
[1759192617932,2.36658477,4225.5,4224.8,2.82]
[1759192618102,2.61148477,4225.5,4224.8,2.82]
[1759192618298,2.36673067,4225.3,4224.8,2.82]
[1759192618634,0.2449,4225.2,4224.8,2.82]
[1759192618941,0.2449,4225.1,4224.8,2.82]
[1759192619100,2.61171958,4225.1,4224.8,2.82]
[1759192619298,2.61171958,4225.1,4224.3,14.5]
[1759192619299,0.1176,4224.8,4224.3,14.5]
[1759192619531,2.36692481,4224.9,4224.2,2.819]
[1759192619800,0.2449,4225.0,4224.2,2.819]
[1759192620301,0.2449,4225.0,4224.3,2.36724951]
[1759192620503,0.3043169,4224.9,4224.2,5.18630301]
[1759192620718,0.2449,4224.8,4224.2,5.18629671]
[1759192621406,0.2449,4224.8,4224.2,2.819]
[1759192621608,0.2449,4224.8,4224.2,5.18629657]
[1759192621809,0.2449,4224.8,4224.3,2.36725421]
[1759192622010,0.2449,4224.8,4224.2,5.18630818]
[1759192622310,0.83102654,4224.8,4224.2,2.819]
[1759192622732,0.83102654,4224.8,4224.3,0.002]
[1759192622939,2.36712621,4224.6,4224.3,0.002]
[1759192623150,2.36720007,4224.4,4224.3,0.002]
[1759192623453,0.58612654,4224.8,4224.3,0.002]
[1759192623454,0.2449,4224.6,4224.3,0.002]
[1759192623650,0.60950265,4224.6,4224.3,0.002]
[1759192624148,2.36714952,4224.5,4224.3,0.002]
[1759192624449,2.36720007,4224.4,4224.3,0.002]
[1759192625147,0.2449,4224.4,4224.3,0.002]
[1759192625359,2.36720007,4224.4,4224.3,0.002]
[1759192625523,0.55303581,4224.4,4224.3,0.002]
[1759192625924,2.36714507,4224.5,4224.3,0.002]
[1759192626230,0.36460265,4224.6,4224.3,0.002]
[1759192626642,2.3671625,4224.5,4224.3,0.002]
[1759192626836,2.36720007,4224.4,4224.3,0.002]
[1759192627539,0.2449,4224.4,4224.3,0.002]
[1759192627846,2.95291388,4224.4,4224.3,0.002]
[1759192629444,0.58571381,4224.4,4224.3,0.002]
[1759192629650,2.95291388,4224.4,4224.3,0.002]
[1759192630326,0.58571381,4224.4,4224.3,0.002]
[1759192630643,0.36460265,4224.6,4224.3,0.7023]
[1759192630849,2.36680788,4225.1,4224.4,0.7003]
[1759192631025,2.36698276,4224.8,4224.4,0.7003]
[1759192631333,2.36709845,4224.6,4224.4,0.2262]
[1759192631536,2.36720007,4224.4,4224.3,0.002]
[1759192631756,5.36720007,4224.4,4224.3,0.002]
[1759192631965,6.43767111,4224.4,4224.3,0.002]
[1759192632123,9.24867111,4224.4,4224.3,0.002]
[1759192632329,8.85770007,4224.4,4224.3,0.002]
[1759192632552,10.00385091,4224.4,4224.3,0.002]
[1759192633541,7.19285091,4224.4,4224.3,0.002]
[1759192633762,10.00285091,4224.4,4224.3,0.002]
[1759192634253,10.00185091,4224.4,4224.3,0.002]
[1759192635360,7.19285091,4224.4,4224.3,0.002]
[1759192635534,10.00185091,4224.4,4224.3,0.002]
[1759192636152,7.19285091,4224.4,4224.3,0.002]
[1759192636662,9.99985091,4224.4,4224.3,0.002]
[1759192636959,7.19285091,4224.4,4224.3,0.002]
[1759192637326,9.99885091,4224.4,4224.3,0.002]
[1759192637761,9.99785091,4224.4,4224.3,0.002]
[1759192639161,6.51335091,4224.4,4224.3,0.002]
[1759192639362,9.31835091,4224.4,4224.3,0.002]
[1759192639952,9.31735091,4224.4,4224.3,0.002]
[1759192640646,10.03475091,4224.4,4224.3,0.002]
[1759192641454,9.56155091,4224.4,4224.3,0.002]
[1759192641657,10.03475091,4224.4,4224.3,0.002]
[1759192641962,9.56155091,4224.4,4224.3,0.002]
[1759192642459,6.75755091,4224.4,4224.3,0.002]
[1759192642642,9.55855091,4224.4,4224.3,0.002]
[1759192644264,6.75755091,4224.4,4224.3,0.002]
[1759192644464,9.55655091,4224.4,4224.3,0.002]
[1759192644660,6.51335091,4224.4,4224.3,0.002]
[1759192644843,9.31135091,4224.4,4224.3,0.002]
[1759192645046,9.31135091,4224.4,4224.3,0.2447]
[1759192645253,9.31135091,4224.4,4224.3,0.002]
[1759192645663,9.55555091,4224.4,4224.3,0.002]
[1759192646464,10.02875091,4224.4,4224.3,0.002]
[1759192647158,9.55555091,4224.4,4224.3,0.002]
[1759192647862,10.02875091,4224.4,4224.3,0.002]
[1759192648468,10.41972195,4224.4,4224.3,0.002]
[1759192652680,10.41372195,4224.4,4224.3,0.002]
[1759192653492,2.36770451,4223.5,4223.4,0.002]
[1759192653787,5.36776057,4223.4,4222.9,0.002]
[1759192653985,2.36798484,4223.0,4222.9,0.002]
[1759192654153,5.15998484,4223.0,4222.9,0.4761]
[1759192654356,5.15998484,4223.0,4222.9,0.002]
[1759192654880,8.15998484,4223.0,4222.9,0.002]
[1759192655052,9.21277444,4223.0,4222.9,0.002]
[1759192655252,9.84794548,4223.0,4222.9,0.002]
[1759192655478,9.21177444,4223.0,4222.9,0.002]
[1759192656867,9.21177444,4223.0,4222.9,0.7188]
[1759192657068,5.36798484,4223.0,4222.9,0.7188]
[1759192660428,5.36798484,4223.0,4222.2,0.02368433]
[1759192660429,5.36804091,4222.9,4222.8,1e-08]
[1759192660719,8.16204091,4222.9,4222.8,1e-08]
[1759192661096,3.0,4222.9,4222.8,0.69130001]
[1759192661402,5.94744091,4222.9,4222.8,0.69130001]
[1759192661713,5.94744091,4222.9,4222.8,0.24560001]
[1759192661891,5.94744091,4222.9,4222.8,1e-08]
[1759192662086,3.5794,4222.9,4222.8,1e-08]
[1759192662312,5.94744091,4222.9,4222.8,1e-08]
[1759192667706,6.18214091,4222.9,4222.8,1e-08]
[1759192667901,5.94744091,4222.9,4222.8,1e-08]
[1759192670430,6.18214091,4222.9,4222.8,1e-08]
[1759192671348,5.94744091,4222.9,4222.8,1e-08]
[1759192672933,6.18214091,4222.9,4222.8,1e-08]
[1759192673229,5.94744091,4222.9,4222.8,1e-08]
[1759192674730,5.94744091,4222.9,4222.8,0.24560001]
[1759192674913,5.94744091,4222.9,4222.8,1e-08]
[1759192675812,3.5794,4222.9,4222.8,0.69130001]
[1759192676029,5.36804091,4222.9,4222.8,0.69130001]
[1759192676549,8.38474091,4222.9,4222.8,1e-08]
[1759192676844,9.22401195,4222.9,4222.8,1e-08]
[1759192677021,12.41331738,4222.9,4222.8,1e-08]
[1759192677222,12.73455095,4222.9,4222.8,1e-08]
[1759192678442,12.73555095,4222.9,4222.8,1e-08]
[1759192678744,2.36832133,4222.4,4222.3,1e-08]
[1759192678940,27.14113935,4222.4,4222.3,1e-08]
[1759192679141,27.82413935,4222.4,4222.3,1e-08]
[1759192680934,25.04113935,4222.4,4222.3,1e-08]
[1759192681140,27.37383935,4222.4,4222.3,1e-08]
[1759192681336,8.92297819,4222.4,4222.3,1e-08]
[1759192682253,8.92197819,4222.4,4222.3,1e-08]
[1759192682663,3.14197819,4222.4,4222.3,1e-08]
[1759192682828,2.36832133,4222.4,4222.3,0.69130001]
[1759192683368,2.36832133,4222.4,4222.3,1e-08]
[1759192683528,2.36832133,4222.4,4222.3,0.24560001]
[1759192683724,2.36832133,4222.4,4222.3,0.69130001]
[1759192684257,0.001,4222.9,4222.3,0.69130001]
[1759192684460,3.0,4222.7,4222.4,0.6913]
[1759192684630,5.36826524,4222.5,4222.3,1e-08]
[1759192685024,0.3391971,4222.8,4222.3,1e-08]
[1759192685224,5.14915307,4222.7,4222.3,1e-08]
[1759192685458,5.36832133,4222.4,4222.3,1e-08]
[1759192685657,10.9455978,4222.4,4222.3,1e-08]
[1759192685843,11.6285978,4222.4,4222.3,1e-08]
[1759192686020,11.1802978,4222.4,4222.3,1e-08]
[1759192686223,7.76562676,4222.4,4222.3,1e-08]
[1759192686555,5.15732133,4222.4,4222.3,0.69130001]
[1759192687962,5.15732133,4222.4,4222.3,0.24560001]
[1759192688848,5.15732133,4222.4,4222.3,1e-08]
[1759192693045,9.24849237,4222.4,4222.3,1e-08]
[1759192693266,10.94697783,4222.4,4222.3,1e-08]
[1759192696167,7.06680679,4222.4,4222.3,1e-08]
[1759192696367,9.84780679,4222.4,4222.3,1e-08]
[1759192696770,7.06680679,4222.4,4222.3,1e-08]
[1759192696976,9.84780679,4222.4,4222.3,0.68470001]
[1759192697649,9.84880679,4222.4,4222.3,0.68470001]
[1759192697982,7.06680679,4222.4,4222.3,0.68470001]
[1759192698149,9.84880679,4222.4,4222.3,0.68470001]
[1759192698680,7.06780679,4222.4,4222.3,0.68470001]
[1759192700765,5.36932133,4222.4,4222.3,0.68470001]
[1759192703774,0.001,4222.4,4222.3,0.68470001]
[1759192704292,2.36932133,4222.4,4222.3,0.68470001]
[1759192704785,2.36932133,4222.4,4222.3,1e-08]
[1759192706799,2.61492133,4222.4,4222.3,1e-08]
[1759192706997,3.4299374,4222.4,4222.3,1e-08]
[1759192708086,3.1843374,4222.4,4222.3,1e-08]
[1759192709073,3.1843374,4222.4,4222.3,0.68470001]
[1759192709398,2.36932133,4222.4,4222.3,0.68470001]
[1759192710802,5.36932133,4222.4,4222.3,1e-08]
[1759192717484,5.36932133,4222.4,4222.3,0.68470001]
[1759192719082,5.36932133,4222.4,4222.3,1e-08]
[1759192719287,6.4069403,4222.4,4222.3,1e-08]
[1759192719484,6.1676403,4222.4,4222.3,1e-08]
[1759192720814,6.4069403,4222.4,4222.3,1e-08]
[1759192720988,6.1676403,4222.4,4222.3,1e-08]
[1759192721193,6.1676403,4222.4,4222.3,0.23210001]
[1759192721685,6.1676403,4222.4,4222.3,1e-08]
[1759192722280,6.1676403,4222.4,4222.3,0.44310001]
[1759192722281,0.001,4222.4,4222.3,0.44310001]
[1759192722512,0.001,4222.4,4222.3,0.67520001]
[1759192726689,0.001,4222.4,4222.3,3.0672612]
[1759192727284,0.001,4222.4,4222.3,3.8592612]
[1759192727496,0.001,4222.4,4222.3,3.9776612]
[1759192727697,0.001,4222.4,4222.3,6.06247517]
[1759192727898,0.001,4222.4,4222.3,6.0387914]
[1759192728220,0.001,4222.4,4222.3,6.50141011]
[1759192729635,0.001,4222.4,4222.3,4.41659614]
[1759192729930,0.001,4222.4,4222.3,18.91659614]
[1759192732426,0.001,4222.4,4222.3,21.67359614]
[1759192738648,0.001,4222.4,4222.3,17.71461872]
[1759192738851,0.001,4222.4,4222.3,14.50000001]
[1759192739021,0.2403,4222.4,4222.3,17.25300001]
[1759192739228,0.001,4222.4,4222.3,17.25300001]
[1759192739955,0.001,4222.4,4222.3,2.75300001]
[1759192740253,0.2403,4222.4,4222.3,5.12137743]
[1759192740753,0.2403,4222.4,4222.3,2.75300001]
[1759192740931,0.2403,4222.4,4222.3,5.12137743]
[1759192741136,0.001,4222.4,4222.3,5.12137743]
[1759192742126,2.83403705,4224.0,4222.4,0.792]
[1759192742326,0.1176,4223.1,4222.6,6.87345411]
[1759192742526,0.1176,4223.1,4222.7,3.45188153]
[1759192742962,0.1176,4223.1,4222.8,0.6752]
[1759192743151,0.1176,4223.1,4222.9,0.0236804]
[1759192743332,0.1176,4223.1,4223.0,3.4282]
[1759192743928,2.48552877,4223.1,4223.0,2.753]
[1759192744532,2.48552877,4223.1,4223.0,17.253]
[1759192747250,0.1176,4223.1,4223.0,17.253]
[1759192748763,0.1176,4223.1,4223.0,17.6961]
[1759192749453,0.1176,4223.1,4223.0,23.79761116]
[1759192749652,0.1176,4223.1,4223.0,26.17737228]
[1759192751361,0.1186,4223.1,4223.0,26.17737228]
[1759192752235,0.1186,4223.1,4223.0,28.54535712]
[1759192752547,0.001,4223.1,4223.0,28.54535712]
[1759192752744,0.001,4223.1,4223.0,29.33735712]
[1759192753052,0.001,4223.1,4223.0,29.45495712]
[1759192754940,0.001,4223.1,4223.0,29.44425712]
[1759192755136,0.001,4223.1,4223.0,20.53836112]
[1759192755466,0.001,4223.1,4222.7,0.1184]
[1759192755666,0.001,4223.1,4222.8,2.749]
[1759192755868,0.001,4223.1,4222.9,2.749]
[1759192756054,0.001,4223.1,4223.0,2.749]
[1759192756750,0.001,4223.1,4223.0,5.11698484]
[1759192757939,0.001,4223.1,4223.0,10.956696]
[1759192758151,0.001,4223.1,4223.0,12.28917381]
[1759192759774,0.001,4223.1,4223.0,9.92118897]
[1759192760073,0.001,4223.1,4223.0,5.11698484]
[1759192763070,0.001,4223.1,4223.0,5.57798484]
[1759192763574,0.001,4223.1,4223.0,20.07798484]
[1759192765072,0.001,4223.1,4223.0,17.249]
[1759192765289,0.001,4223.1,4222.9,2.36800199]
[1759192765497,0.2432,4223.1,4223.0,5.11698484]
[1759192766503,0.2432,4223.1,4223.0,2.749]
[1759192766709,0.6814,4223.1,4221.9,0.002]
[1759192767001,0.001,4223.1,4222.4,3.21]
[1759192767205,0.1184,4222.8,4222.7,2.36815307]
[1759192767389,0.1184,4222.8,4222.7,5.1408346]
[1759192767687,0.1184,4222.8,4222.7,5.11715307]
[1759192769061,0.1184,4222.8,4222.7,2.749]
[1759192769874,0.1184,4222.8,4222.7,5.11715307]
[1759192770078,0.7988,4222.8,4222.7,5.11715307]
[1759192770466,0.7988,4222.8,4222.4,14.502]
[1759192770667,0.1184,4222.5,4222.4,0.002]
[1759192770975,0.1184,4222.5,4222.4,2.751]
[1759192771176,0.7988,4222.5,4222.4,2.751]
[1759192771762,0.1184,4222.5,4222.4,2.751]
[1759192773275,0.001,4223.1,4222.4,9.81095074]
[1759192773481,0.1184,4222.8,4222.5,0.73198265]
[1759192773790,0.1176,4223.0,4222.7,2.36815307]
[1759192773981,0.1176,4223.0,4222.9,2.36799216]
[1759192775177,0.1176,4223.0,4222.8,2.749]
[1759192776211,0.1176,4223.0,4222.8,5.11708629]
[1759192776405,0.1176,4223.0,4222.8,2.749]
[1759192777212,0.1176,4223.0,4222.4,0.002]
[1759192777213,0.3598,4223.0,4222.9,2.749]
[1759192777378,0.001,4223.1,4222.9,2.749]
[1759192777710,0.2432,4223.1,4222.9,2.749]